[Event "Late-Titled-Tuesday-Blitz-June-18-2024"]
[Site "Chess.com"]
[Date "2024.06.18"]
[Round "5"]
[White "carloseduar100"]
[Black "Finejupiter"]
[Result "1-0"]
[WhiteElo "2252"]
[BlackElo "1842"]
[TimeControl "180+1"]
[EndTime "14:56:33 PDT"]
[Termination "carloseduar100 won by checkmate"]

1. e4 {[%clk 0:03:00.9]} 1... c5 {[%clk 0:02:58.2]} 2. Nf3 {[%clk 0:03:00.7]}
2... a6 {[%clk 0:02:44]} 3. Nc3 {[%clk 0:03:00.2]} 3... Nc6 {[%clk 0:02:39.9]}
4. d4 {[%clk 0:02:59.4]} 4... cxd4 {[%clk 0:02:40]} 5. Nxd4 {[%clk 0:02:59.4]}
5... g6 {[%clk 0:02:39]} 6. Be3 {[%clk 0:02:57.3]} 6... Bg7 {[%clk 0:02:38.7]}
7. Qd2 {[%clk 0:02:57.5]} 7... Nf6 {[%clk 0:02:32.2]} 8. f3 {[%clk 0:02:56.5]}
8... d6 {[%clk 0:02:31.1]} 9. h4 {[%clk 0:02:55.6]} 9... h5 {[%clk 0:02:29.7]}
10. a4 {[%clk 0:02:40.3]} 10... O-O {[%clk 0:02:27.5]} 11. Nxc6 {[%clk
0:02:36.6]} 11... bxc6 {[%clk 0:02:26.9]} 12. Bh6 {[%clk 0:02:37.2]} 12... Qb6
{[%clk 0:02:23.1]} 13. Bxg7 {[%clk 0:02:37]} 13... Kxg7 {[%clk 0:02:24]} 14. Be2
{[%clk 0:02:17.9]} 14... Qxb2 {[%clk 0:02:21.5]} 15. Rb1 {[%clk 0:02:17.7]}
15... Qa3 {[%clk 0:02:21.2]} 16. g4 {[%clk 0:02:17.8]} 16... Qc5 {[%clk
0:02:14.1]} 17. g5 {[%clk 0:02:06.9]} 17... Nd7 {[%clk 0:02:13.4]} 18. f4 {[%clk
0:02:03.1]} 18... Nb6 {[%clk 0:02:02.4]} 19. Qd3 {[%clk 0:01:47.7]} 19... Be6
{[%clk 0:01:53.5]} 20. Rf1 {[%clk 0:01:05]} 20... Bc4 {[%clk 0:01:50.7]} 21. Qd2
{[%clk 0:01:05.5]} 21... Bxe2 {[%clk 0:01:51]} 22. Kxe2 {[%clk 0:01:06.1]} 22...
Nxa4 {[%clk 0:01:43.2]} 23. Nxa4 {[%clk 0:00:57.7]} 23... Qc4+ {[%clk
0:01:43.4]} 24. Qd3 {[%clk 0:00:58.1]} 24... Qxa4 {[%clk 0:01:43.6]} 25. f5
{[%clk 0:00:58.8]} 25... Rab8 {[%clk 0:01:40.1]} 26. Rxb8 {[%clk 0:00:56.5]}
26... Rxb8 {[%clk 0:01:39.5]} 27. fxg6 {[%clk 0:00:55.7]} 27... fxg6 {[%clk
0:01:39.8]} 28. Qc3+ {[%clk 0:00:43.4]} 28... Kg8 {[%clk 0:01:39.3]} 29. Qd3
{[%clk 0:00:20.4]} 29... Rb2 {[%clk 0:01:39]} 30. Kd2 {[%clk 0:00:15.6]} 30...
Rb4 {[%clk 0:01:38]} 31. c3 {[%clk 0:00:12]} 31... Rxe4 {[%clk 0:01:36.8]} 32.
Rb1 {[%clk 0:00:10.7]} 32... Rxh4 {[%clk 0:01:27.1]} 33. Qxg6+ {[%clk
0:00:10.2]} 33... Kf8 {[%clk 0:01:24.8]} 34. Rb8# {[%clk 0:00:10]} 1-0

[Event "Late-Titled-Tuesday-Blitz-June-18-2024"]
[Site "Chess.com"]
[Date "2024.06.18"]
[Round "5"]
[White "ClauAmura"]
[Black "ArmanGhevondyanchess"]
[Result "1-0"]
[WhiteElo "2375"]
[BlackElo "2580"]
[TimeControl "180+1"]
[EndTime "14:56:38 PDT"]
[Termination "ClauAmura won by checkmate"]

1. d4 {[%clk 0:02:59.7]} 1... Nf6 {[%clk 0:02:58]} 2. Bg5 {[%clk 0:02:58.8]}
2... c5 {[%clk 0:02:51.5]} 3. Bxf6 {[%clk 0:02:58.5]} 3... gxf6 {[%clk
0:02:47.6]} 4. d5 {[%clk 0:02:59.1]} 4... Qb6 {[%clk 0:02:39.5]} 5. Qc1 {[%clk
0:02:58.4]} 5... d6 {[%clk 0:02:37.1]} 6. c4 {[%clk 0:02:58.4]} 6... h5 {[%clk
0:02:23.9]} 7. Nc3 {[%clk 0:02:58.5]} 7... Bh6 {[%clk 0:02:23.4]} 8. e3 {[%clk
0:02:59]} 8... h4 {[%clk 0:02:23.4]} 9. h3 {[%clk 0:02:56.2]} 9... Nd7 {[%clk
0:02:12.5]} 10. Nf3 {[%clk 0:02:53.6]} 10... Bg7 {[%clk 0:02:12.3]} 11. Bd3
{[%clk 0:02:52.8]} 11... Ne5 {[%clk 0:02:10.4]} 12. Nxe5 {[%clk 0:02:52.2]}
12... fxe5 {[%clk 0:02:08.6]} 13. Qc2 {[%clk 0:02:46.9]} 13... f5 {[%clk
0:01:53.8]} 14. e4 {[%clk 0:02:16]} 14... f4 {[%clk 0:01:37.9]} 15. Be2 {[%clk
0:02:15.5]} 15... Bd7 {[%clk 0:01:29]} 16. Bg4 {[%clk 0:02:10.1]} 16... Bxg4
{[%clk 0:00:52.7]} 17. hxg4 {[%clk 0:02:11]} 17... f3 {[%clk 0:00:32.8]} 18.
gxf3 {[%clk 0:02:09.4]} 18... O-O-O {[%clk 0:00:28.6]} 19. Rh3 {[%clk
0:02:08.5]} 19... Rdf8 {[%clk 0:00:28.6]} 20. Ke2 {[%clk 0:02:08.9]} 20... Bf6
{[%clk 0:00:21.4]} 21. a4 {[%clk 0:02:08.4]} 21... Bg5 {[%clk 0:00:19.5]} 22. a5
{[%clk 0:02:07.4]} 22... Qd8 {[%clk 0:00:18.7]} 23. Qa4 {[%clk 0:01:56.7]} 23...
Rf7 {[%clk 0:00:18.4]} 24. a6 {[%clk 0:01:55.3]} 24... b6 {[%clk 0:00:14.6]} 25.
Qc6+ {[%clk 0:01:53]} 25... Qc7 {[%clk 0:00:15]} 26. Qa8+ {[%clk 0:01:44.7]}
26... Qb8 {[%clk 0:00:15.3]} 27. Qc6+ {[%clk 0:01:44]} 27... Qc7 {[%clk
0:00:15.8]} 28. Nb5 {[%clk 0:01:43.7]} 28... Qxc6 {[%clk 0:00:14.4]} 29. Nxa7+
{[%clk 0:01:43.6]} 29... Kc7 {[%clk 0:00:12.6]} 30. Nxc6 {[%clk 0:01:43.3]}
30... Ra8 {[%clk 0:00:13.2]} 31. a7 {[%clk 0:01:41.4]} 31... Rff8 {[%clk
0:00:13.4]} 32. Ra4 {[%clk 0:01:37.2]} 32... b5 {[%clk 0:00:12.4]} 33. cxb5
{[%clk 0:01:36.3]} 33... Kb6 {[%clk 0:00:13.3]} 34. Rh1 {[%clk 0:01:30.2]} 34...
Kxb5 {[%clk 0:00:13.4]} 35. Rha1 {[%clk 0:01:30.6]} 35... c4 {[%clk 0:00:11.5]}
36. Rb4+ {[%clk 0:01:27.3]} 36... Kc5 {[%clk 0:00:08.5]} 37. Ra5# {[%clk
0:01:27.4]} 1-0

[Event "Late-Titled-Tuesday-Blitz-June-18-2024"]
[Site "Chess.com"]
[Date "2024.06.18"]
[Round "5"]
[White "jbking07"]
[Black "ChessWarrior7197"]
[Result "0-1"]
[WhiteElo "2390"]
[BlackElo "3150"]
[TimeControl "180+1"]
[EndTime "14:56:40 PDT"]
[Termination "ChessWarrior7197 won by checkmate"]

1. Nf3 {[%clk 0:03:00.9]} 1... Nf6 {[%clk 0:02:57.8]} 2. g3 {[%clk 0:02:54.5]}
2... c5 {[%clk 0:02:56.1]} 3. Bg2 {[%clk 0:02:54]} 3... Nc6 {[%clk 0:02:57]} 4.
O-O {[%clk 0:02:51.7]} 4... d5 {[%clk 0:02:57]} 5. d4 {[%clk 0:02:51.3]} 5... e6
{[%clk 0:02:56.3]} 6. b3 {[%clk 0:02:45.7]} 6... cxd4 {[%clk 0:02:55.9]} 7. Nxd4
{[%clk 0:02:45.1]} 7... Bc5 {[%clk 0:02:56.4]} 8. Bb2 {[%clk 0:02:43.9]} 8...
O-O {[%clk 0:02:56.5]} 9. Nf3 {[%clk 0:02:35.2]} 9... Qe7 {[%clk 0:02:51]} 10.
Ne5 {[%clk 0:02:17.5]} 10... Rd8 {[%clk 0:02:49.1]} 11. e3 {[%clk 0:02:00.3]}
11... Bd7 {[%clk 0:02:43.5]} 12. Nxd7 {[%clk 0:01:54.7]} 12... Rxd7 {[%clk
0:02:44.4]} 13. Qe2 {[%clk 0:01:29.6]} 13... Rc8 {[%clk 0:02:40]} 14. a3 {[%clk
0:01:27.6]} 14... d4 {[%clk 0:02:38.7]} 15. b4 {[%clk 0:01:24.8]} 15... Bb6
{[%clk 0:02:37.5]} 16. Bxc6 {[%clk 0:00:58.7]} 16... Rxc6 {[%clk 0:02:38.4]} 17.
exd4 {[%clk 0:00:57.4]} 17... Bxd4 {[%clk 0:02:38]} 18. c3 {[%clk 0:00:53.5]}
18... Bb6 {[%clk 0:02:36.5]} 19. c4 {[%clk 0:00:53.2]} 19... Bd4 {[%clk
0:02:34.3]} 20. Bxd4 {[%clk 0:00:49.8]} 20... Rxd4 {[%clk 0:02:35.2]} 21. Nd2
{[%clk 0:00:48.3]} 21... Qd8 {[%clk 0:02:29.8]} 22. Nb3 {[%clk 0:00:46.9]} 22...
Re4 {[%clk 0:02:27.8]} 23. Qf3 {[%clk 0:00:42]} 23... Rd6 {[%clk 0:01:50.4]} 24.
Rfd1 {[%clk 0:00:35.3]} 24... Rxc4 {[%clk 0:01:47.7]} 25. Rxd6 {[%clk
0:00:33.6]} 25... Qxd6 {[%clk 0:01:48.6]} 26. Qxb7 {[%clk 0:00:33.4]} 26... h5
{[%clk 0:01:46.5]} 27. Qxa7 {[%clk 0:00:31.5]} 27... Qd5 {[%clk 0:01:34.4]} 28.
Qe3 {[%clk 0:00:22.6]} 28... h4 {[%clk 0:01:32.5]} 29. Qd2 {[%clk 0:00:11.5]}
29... Qf3 {[%clk 0:01:24.2]} 30. Nd4 {[%clk 0:00:10.2]} 30... Qe4 {[%clk
0:01:23.9]} 31. Rd1 {[%clk 0:00:08.1]} 31... h3 {[%clk 0:01:22.5]} 32. f3 {[%clk
0:00:08.7]} 32... Qd5 {[%clk 0:01:20.9]} 33. Nb3 {[%clk 0:00:07.8]} 33... Qxf3
{[%clk 0:01:15.7]} 34. Qd8+ {[%clk 0:00:06.9]} 34... Ne8 {[%clk 0:01:15.3]} 35.
Qd3 {[%clk 0:00:07.8]} 35... Qg2# {[%clk 0:01:14.7]} 0-1

[Event "Late-Titled-Tuesday-Blitz-June-18-2024"]
[Site "Chess.com"]
[Date "2024.06.18"]
[Round "5"]
[White "OverallStranger"]
[Black "BilodeauA"]
[Result "0-1"]
[WhiteElo "2393"]
[BlackElo "3012"]
[TimeControl "180+1"]
[EndTime "14:56:44 PDT"]
[Termination "BilodeauA won by resignation"]

1. e4 {[%clk 0:03:00.9]} 1... e5 {[%clk 0:02:57.7]} 2. Nf3 {[%clk 0:03:01]} 2...
Nc6 {[%clk 0:02:58.3]} 3. d4 {[%clk 0:03:01.6]} 3... exd4 {[%clk 0:02:58.5]} 4.
Nxd4 {[%clk 0:03:02.5]} 4... Qf6 {[%clk 0:02:58.5]} 5. Nf3 {[%clk 0:03:02.6]}
5... Bb4+ {[%clk 0:02:58.3]} 6. c3 {[%clk 0:03:02.6]} 6... Bc5 {[%clk
0:02:58.9]} 7. Be2 {[%clk 0:03:01.9]} 7... Nge7 {[%clk 0:02:59]} 8. O-O {[%clk
0:03:02.1]} 8... d6 {[%clk 0:02:59.4]} 9. Nbd2 {[%clk 0:03:01.7]} 9... O-O
{[%clk 0:02:58.7]} 10. Nc4 {[%clk 0:02:59.9]} 10... a5 {[%clk 0:02:46.5]} 11.
Be3 {[%clk 0:02:56.6]} 11... Bxe3 {[%clk 0:02:44.2]} 12. Nxe3 {[%clk 0:02:56.7]}
12... Ne5 {[%clk 0:02:38.4]} 13. Qc2 {[%clk 0:02:43]} 13... Nxf3+ {[%clk
0:02:28.1]} 14. Bxf3 {[%clk 0:02:43]} 14... Ng6 {[%clk 0:02:24.6]} 15. Nd5
{[%clk 0:02:42.4]} 15... Qd8 {[%clk 0:02:24.2]} 16. g3 {[%clk 0:02:37.7]} 16...
Be6 {[%clk 0:02:24]} 17. Rad1 {[%clk 0:02:32.9]} 17... Re8 {[%clk 0:02:21.7]}
18. Bg2 {[%clk 0:02:32.5]} 18... a4 {[%clk 0:02:16.9]} 19. a3 {[%clk 0:02:31.5]}
19... c6 {[%clk 0:02:17]} 20. Ne3 {[%clk 0:02:27.4]} 20... Bb3 {[%clk
0:02:17.2]} 21. Qd3 {[%clk 0:02:23.3]} 21... Bxd1 {[%clk 0:02:17.3]} 22. Rxd1
{[%clk 0:02:24.2]} 22... Ne5 {[%clk 0:02:13.4]} 23. Qxd6 {[%clk 0:02:23.5]}
23... Qxd6 {[%clk 0:02:13.4]} 24. Rxd6 {[%clk 0:02:24.4]} 24... Rad8 {[%clk
0:02:13.7]} 25. Rxd8 {[%clk 0:02:21]} 25... Rxd8 {[%clk 0:02:14.6]} 26. f4
{[%clk 0:01:36.1]} 26... Nd3 {[%clk 0:02:14]} 27. Nc4 {[%clk 0:01:35.7]} 27...
b5 {[%clk 0:02:11.4]} 28. Na5 {[%clk 0:01:35.9]} 28... Nxb2 {[%clk 0:02:08.7]}
29. Nxc6 {[%clk 0:01:36]} 29... Rd1+ {[%clk 0:02:08.5]} 30. Bf1 {[%clk
0:01:26.5]} 30... Nc4 {[%clk 0:02:07]} 31. Nd4 {[%clk 0:00:47.1]} 31... Nd2
{[%clk 0:01:15.6]} 32. Kf2 {[%clk 0:00:43.8]} 32... Rxf1+ {[%clk 0:01:05.4]} 33.
Ke2 {[%clk 0:00:44]} 33... Nb3 {[%clk 0:01:06.1]} 34. Kxf1 {[%clk 0:00:10.6]}
34... Nxd4 {[%clk 0:01:05.6]} 35. cxd4 {[%clk 0:00:11.5]} 35... b4 {[%clk
0:01:05.9]} 36. d5 {[%clk 0:00:11.3]} 36... bxa3 {[%clk 0:01:04.7]} 0-1

[Event "Late-Titled-Tuesday-Blitz-June-18-2024"]
[Site "Chess.com"]
[Date "2024.06.18"]
[Round "5"]
[White "duone"]
[Black "talaicito"]
[Result "1-0"]
[WhiteElo "2430"]
[BlackElo "2297"]
[TimeControl "180+1"]
[EndTime "14:56:46 PDT"]
[Termination "duone won on time"]

1. e4 {[%clk 0:02:56.4]} 1... c5 {[%clk 0:02:59.4]} 2. Nf3 {[%clk 0:02:55.8]}
2... d6 {[%clk 0:03:00]} 3. Bb5+ {[%clk 0:02:54.9]} 3... Bd7 {[%clk 0:02:59.6]}
4. Bxd7+ {[%clk 0:02:54.5]} 4... Qxd7 {[%clk 0:03:00.5]} 5. O-O {[%clk
0:02:53.6]} 5... Nc6 {[%clk 0:03:00.8]} 6. c3 {[%clk 0:02:54.1]} 6... Nf6 {[%clk
0:03:01.1]} 7. Re1 {[%clk 0:02:48.3]} 7... e5 {[%clk 0:02:48.1]} 8. d4 {[%clk
0:02:48.1]} 8... Be7 {[%clk 0:02:44]} 9. Na3 {[%clk 0:02:33.3]} 9... O-O {[%clk
0:02:40.6]} 10. Nc2 {[%clk 0:02:30.3]} 10... Qc7 {[%clk 0:02:13.7]} 11. Ne3
{[%clk 0:02:28.8]} 11... Rfe8 {[%clk 0:01:51.6]} 12. Nf5 {[%clk 0:02:18.2]}
12... Bf8 {[%clk 0:01:51.2]} 13. Bg5 {[%clk 0:02:11.5]} 13... Nd7 {[%clk
0:01:18]} 14. h4 {[%clk 0:01:48.2]} 14... exd4 {[%clk 0:01:15.6]} 15. cxd4
{[%clk 0:01:47.8]} 15... cxd4 {[%clk 0:01:13.2]} 16. N3xd4 {[%clk 0:01:47.6]}
16... Nxd4 {[%clk 0:01:08.7]} 17. Qxd4 {[%clk 0:01:46.1]} 17... Qb6 {[%clk
0:01:03.8]} 18. Rad1 {[%clk 0:01:37.5]} 18... Qxd4 {[%clk 0:00:34]} 19. Rxd4
{[%clk 0:01:35.2]} 19... Nc5 {[%clk 0:00:34.5]} 20. f3 {[%clk 0:01:27.5]} 20...
Ne6 {[%clk 0:00:24.3]} 21. Rd5 {[%clk 0:01:24.1]} 21... Nxg5 {[%clk 0:00:20.5]}
22. hxg5 {[%clk 0:01:25]} 22... Re6 {[%clk 0:00:17.4]} 23. Red1 {[%clk
0:01:23.2]} 23... Rc8 {[%clk 0:00:15.5]} 24. Nxd6 {[%clk 0:01:21.7]} 24... Bxd6
{[%clk 0:00:13.8]} 25. Rxd6 {[%clk 0:01:21.9]} 25... Kf8 {[%clk 0:00:07.1]} 26.
Rd8+ {[%clk 0:01:20.2]} 26... Rxd8 {[%clk 0:00:06.2]} 27. Rxd8+ {[%clk
0:01:21.1]} 27... Ke7 {[%clk 0:00:06.6]} 28. Rh8 {[%clk 0:01:17.8]} 28... g6
{[%clk 0:00:05]} 29. Rxh7 {[%clk 0:01:16.4]} 29... Rb6 {[%clk 0:00:04.7]} 30. b3
{[%clk 0:01:16.3]} 30... Ra6 {[%clk 0:00:04.6]} 31. Rh8 {[%clk 0:01:16.5]} 31...
Rxa2 {[%clk 0:00:03.9]} 32. Rb8 {[%clk 0:01:17.1]} 32... b6 {[%clk 0:00:03.7]}
33. Rb7+ {[%clk 0:01:16]} 33... Ke6 {[%clk 0:00:03.9]} 34. Kh2 {[%clk
0:01:12.5]} 34... Rb2 {[%clk 0:00:02.3]} 35. Kg3 {[%clk 0:01:13.1]} 35... Rxb3
{[%clk 0:00:01.1]} 36. Rxa7 {[%clk 0:01:13]} 1-0

[Event "Late-Titled-Tuesday-Blitz-June-18-2024"]
[Site "Chess.com"]
[Date "2024.06.18"]
[Round "5"]
[White "MagnusCarlsen"]
[Black "GHANDEEVAM2003"]
[Result "1-0"]
[WhiteElo "3197"]
[BlackElo "2987"]
[TimeControl "180+1"]
[EndTime "14:56:47 PDT"]
[Termination "MagnusCarlsen won by resignation"]

1. Nf3 {[%clk 0:02:46]} 1... Nf6 {[%clk 0:02:49.4]} 2. g3 {[%clk 0:02:46.1]}
2... g6 {[%clk 0:02:49.2]} 3. Bg2 {[%clk 0:02:46.3]} 3... Bg7 {[%clk 0:02:49.9]}
4. O-O {[%clk 0:02:46.8]} 4... O-O {[%clk 0:02:50.8]} 5. b3 {[%clk 0:02:40.4]}
5... d5 {[%clk 0:02:47.1]} 6. Bb2 {[%clk 0:02:39.8]} 6... c5 {[%clk 0:02:47.1]}
7. c4 {[%clk 0:02:39.9]} 7... d4 {[%clk 0:02:45.4]} 8. b4 {[%clk 0:02:39.5]}
8... Nc6 {[%clk 0:02:42.2]} 9. bxc5 {[%clk 0:02:39.1]} 9... Ne4 {[%clk
0:02:40.7]} 10. d3 {[%clk 0:02:38.7]} 10... Nxc5 {[%clk 0:02:40.5]} 11. Ba3
{[%clk 0:02:37.9]} 11... b6 {[%clk 0:02:28.3]} 12. Nbd2 {[%clk 0:02:36.7]} 12...
Qc7 {[%clk 0:02:21]} 13. Bxc5 {[%clk 0:02:32.5]} 13... bxc5 {[%clk 0:02:21.9]}
14. Nb3 {[%clk 0:02:32.5]} 14... Qd6 {[%clk 0:02:16.9]} 15. Nfd2 {[%clk
0:02:32]} 15... f5 {[%clk 0:02:16.9]} 16. Na5 {[%clk 0:02:29.3]} 16... Nxa5
{[%clk 0:01:47.5]} 17. Bxa8 {[%clk 0:02:28.5]} 17... Nc6 {[%clk 0:01:48.4]} 18.
Rb1 {[%clk 0:02:03.5]} 18... Bd7 {[%clk 0:01:36.4]} 19. Bb7 {[%clk 0:02:02.5]}
19... e5 {[%clk 0:01:32.8]} 20. Qa4 {[%clk 0:01:58.9]} 20... Bh6 {[%clk
0:01:19.9]} 21. Nb3 {[%clk 0:01:53.9]} 21... Rb8 {[%clk 0:01:13.2]} 22. Bxc6
{[%clk 0:01:28.6]} 22... Bxc6 {[%clk 0:01:14.1]} 23. Qxa7 {[%clk 0:01:26.5]}
23... Bf8 {[%clk 0:01:14.5]} 24. Na5 {[%clk 0:01:21.9]} 24... Ra8 {[%clk
0:00:57.6]} 25. Qb6 {[%clk 0:01:21.2]} 25... Be8 {[%clk 0:00:58.3]} 26. Qxd6
{[%clk 0:01:21]} 26... Bxd6 {[%clk 0:00:59.2]} 27. Nb7 {[%clk 0:01:20.4]} 27...
Be7 {[%clk 0:00:59.6]} 28. a4 {[%clk 0:01:19.4]} 28... Rxa4 {[%clk 0:00:53.5]}
29. Ra1 {[%clk 0:01:19.3]} 29... Rb4 {[%clk 0:00:54.1]} 30. Rfb1 {[%clk
0:01:17.5]} 30... Kf7 {[%clk 0:00:54.4]} 31. Rxb4 {[%clk 0:01:13.7]} 31... cxb4
{[%clk 0:00:55.3]} 32. Ra6 {[%clk 0:01:10.1]} 32... e4 {[%clk 0:00:44.3]} 33.
Nd6+ {[%clk 0:01:07.5]} 33... Bxd6 {[%clk 0:00:39.8]} 34. Rxd6 {[%clk
0:01:05.6]} 34... exd3 {[%clk 0:00:40.7]} 35. exd3 {[%clk 0:01:05.3]} 35... Ba4
{[%clk 0:00:41.6]} 36. Rb6 {[%clk 0:00:57.7]} 36... Bc2 {[%clk 0:00:39.3]} 37.
Rxb4 {[%clk 0:00:56]} 37... Ke6 {[%clk 0:00:38.8]} 38. c5 {[%clk 0:00:55.8]} 1-0

[Event "Late-Titled-Tuesday-Blitz-June-18-2024"]
[Site "Chess.com"]
[Date "2024.06.18"]
[Round "5"]
[White "AleksandraMilovic"]
[Black "GMChessrob"]
[Result "0-1"]
[WhiteElo "2038"]
[BlackElo "2639"]
[TimeControl "180+1"]
[EndTime "14:56:58 PDT"]
[Termination "GMChessrob won by resignation"]

1. d4 {[%clk 0:03:00.9]} 1... d5 {[%clk 0:02:59.7]} 2. c4 {[%clk 0:03:00]} 2...
e6 {[%clk 0:02:59.8]} 3. Nc3 {[%clk 0:02:58.8]} 3... Be7 {[%clk 0:02:59.1]} 4.
cxd5 {[%clk 0:02:54.5]} 4... exd5 {[%clk 0:03:00]} 5. Bf4 {[%clk 0:02:52.3]}
5... c6 {[%clk 0:02:59.2]} 6. e3 {[%clk 0:02:51.5]} 6... Bf5 {[%clk 0:02:59]} 7.
g4 {[%clk 0:02:51.3]} 7... Be6 {[%clk 0:02:58.2]} 8. Qb3 {[%clk 0:02:43.7]} 8...
Qb6 {[%clk 0:02:57.3]} 9. f3 {[%clk 0:02:37.3]} 9... Qxb3 {[%clk 0:02:48]} 10.
axb3 {[%clk 0:02:36.8]} 10... Nd7 {[%clk 0:02:27.5]} 11. Bd3 {[%clk 0:02:35]}
11... g5 {[%clk 0:02:22.7]} 12. Bg3 {[%clk 0:02:30.8]} 12... h5 {[%clk
0:02:22.8]} 13. gxh5 {[%clk 0:02:14]} 13... Ngf6 {[%clk 0:02:22.7]} 14. Nge2
{[%clk 0:02:05.5]} 14... Nxh5 {[%clk 0:02:21.5]} 15. Kd2 {[%clk 0:01:58.7]}
15... Bb4 {[%clk 0:02:00.1]} 16. e4 {[%clk 0:01:36.2]} 16... dxe4 {[%clk
0:01:45.5]} 17. fxe4 {[%clk 0:01:33.8]} 17... Bxb3 {[%clk 0:01:45.6]} 18. h4
{[%clk 0:01:14.5]} 18... Nxg3 {[%clk 0:01:40.8]} 19. Nxg3 {[%clk 0:01:13.8]}
19... gxh4 {[%clk 0:01:37.8]} 20. Nf5 {[%clk 0:01:13.4]} 20... a5 {[%clk
0:01:26.2]} 21. Rxh4 {[%clk 0:01:09.9]} 21... Rxh4 {[%clk 0:01:25.7]} 22. Nxh4
{[%clk 0:01:09.9]} 22... O-O-O {[%clk 0:01:26.6]} 23. Ke3 {[%clk 0:00:56.1]}
23... Rh8 {[%clk 0:01:20.3]} 24. Nf3 {[%clk 0:00:50.7]} 24... f6 {[%clk
0:01:00.6]} 25. Rg1 {[%clk 0:00:46.9]} 25... Rg8 {[%clk 0:01:00.8]} 26. Rxg8+
{[%clk 0:00:32]} 26... Bxg8 {[%clk 0:01:00.4]} 27. e5 {[%clk 0:00:27.5]} 27...
fxe5 {[%clk 0:00:55.1]} 28. Nxe5 {[%clk 0:00:24.7]} 28... Nxe5 {[%clk
0:00:53.1]} 29. dxe5 {[%clk 0:00:25.6]} 29... Kd7 {[%clk 0:00:52.4]} 30. Bf5+
{[%clk 0:00:23.6]} 30... Be6 {[%clk 0:00:49.3]} 31. Ke4 {[%clk 0:00:22.6]} 31...
Bxf5+ {[%clk 0:00:48.6]} 32. Kxf5 {[%clk 0:00:22.5]} 32... Bxc3 {[%clk
0:00:49.2]} 33. bxc3 {[%clk 0:00:19.5]} 33... a4 {[%clk 0:00:49.6]} 34. Ke4
{[%clk 0:00:19.7]} 34... a3 {[%clk 0:00:49.3]} 35. Kd3 {[%clk 0:00:19.8]} 35...
a2 {[%clk 0:00:49.6]} 36. Kc2 {[%clk 0:00:20]} 36... a1=Q {[%clk 0:00:50.4]} 0-1

[Event "Late-Titled-Tuesday-Blitz-June-18-2024"]
[Site "Chess.com"]
[Date "2024.06.18"]
[Round "5"]
[White "Bryanl106"]
[Black "NajdorfPlayerc5"]
[Result "1-0"]
[WhiteElo "2735"]
[BlackElo "2448"]
[TimeControl "180+1"]
[EndTime "14:57:00 PDT"]
[Termination "Bryanl106 won on time"]

1. e4 {[%clk 0:03:00.9]} 1... e5 {[%clk 0:02:59.7]} 2. Nf3 {[%clk 0:02:58.8]}
2... Nf6 {[%clk 0:02:59.3]} 3. Nc3 {[%clk 0:02:58.7]} 3... Nc6 {[%clk
0:02:57.3]} 4. a3 {[%clk 0:02:59.2]} 4... d5 {[%clk 0:02:51.1]} 5. Bb5 {[%clk
0:02:59.5]} 5... Nxe4 {[%clk 0:02:45.3]} 6. Qe2 {[%clk 0:02:59.2]} 6... Qd6
{[%clk 0:02:39.2]} 7. Nxd5 {[%clk 0:02:58.7]} 7... Qxd5 {[%clk 0:02:31.1]} 8. c4
{[%clk 0:02:58.4]} 8... Qd6 {[%clk 0:01:58.7]} 9. Qxe4 {[%clk 0:02:57.2]} 9...
Bd7 {[%clk 0:01:54.8]} 10. d4 {[%clk 0:02:56.1]} 10... Nxd4 {[%clk 0:01:37.2]}
11. Bxd7+ {[%clk 0:02:44.7]} 11... Qxd7 {[%clk 0:01:04]} 12. Nxe5 {[%clk
0:02:29.3]} 12... Qe6 {[%clk 0:01:03.1]} 13. Qxd4 {[%clk 0:02:29.3]} 13... Bd6
{[%clk 0:00:59.1]} 14. Bf4 {[%clk 0:02:27.5]} 14... f6 {[%clk 0:00:57.5]} 15.
O-O {[%clk 0:02:26.4]} 15... fxe5 {[%clk 0:00:54]} 16. Qe4 {[%clk 0:02:25.9]}
16... O-O {[%clk 0:00:51.8]} 17. Be3 {[%clk 0:02:24.6]} 17... c6 {[%clk
0:00:51.7]} 18. Rad1 {[%clk 0:02:22.8]} 18... Bc7 {[%clk 0:00:46.9]} 19. f3
{[%clk 0:02:20.1]} 19... Rad8 {[%clk 0:00:46.8]} 20. b3 {[%clk 0:02:17.5]} 20...
Rxd1 {[%clk 0:00:44.3]} 21. Rxd1 {[%clk 0:02:16.4]} 21... b6 {[%clk 0:00:42.6]}
22. h4 {[%clk 0:02:12]} 22... Rd8 {[%clk 0:00:40.9]} 23. Rxd8+ {[%clk
0:02:12.6]} 23... Bxd8 {[%clk 0:00:41.4]} 24. h5 {[%clk 0:02:13.5]} 24... Qd6
{[%clk 0:00:37]} 25. c5 {[%clk 0:02:04.6]} 25... Qd1+ {[%clk 0:00:30.2]} 26. Kh2
{[%clk 0:02:03]} 26... Qd5 {[%clk 0:00:29.6]} 27. cxb6 {[%clk 0:01:52.4]} 27...
Qxe4 {[%clk 0:00:18.3]} 28. fxe4 {[%clk 0:01:45.9]} 28... axb6 {[%clk
0:00:17.6]} 29. Kh3 {[%clk 0:01:45.4]} 29... Kf7 {[%clk 0:00:17.5]} 30. Kg4
{[%clk 0:01:45.6]} 30... g6 {[%clk 0:00:17.8]} 31. a4 {[%clk 0:01:39.8]} 31...
Ke6 {[%clk 0:00:16.9]} 32. b4 {[%clk 0:01:31.3]} 32... Bc7 {[%clk 0:00:13.9]}
33. Kg5 {[%clk 0:01:30.4]} 33... Kf7 {[%clk 0:00:12.4]} 34. Kh6 {[%clk
0:01:29.4]} 34... gxh5 {[%clk 0:00:09.4]} 35. Kxh7 {[%clk 0:01:28.9]} 35... h4
{[%clk 0:00:04.7]} 36. Kh6 {[%clk 0:01:27.4]} 36... Bd8 {[%clk 0:00:04.5]} 37.
Bg5 {[%clk 0:01:27.5]} 37... Bxg5+ {[%clk 0:00:02.4]} 38. Kxg5 {[%clk
0:01:28.4]} 38... Ke6 {[%clk 0:00:03]} 39. Kxh4 {[%clk 0:01:28.1]} 39... c5
{[%clk 0:00:01.8]} 40. bxc5 {[%clk 0:01:29]} 40... bxc5 {[%clk 0:00:02.7]} 41.
Kg3 {[%clk 0:01:28.7]} 41... Kd6 {[%clk 0:00:03.1]} 42. Kf2 {[%clk 0:01:29.1]}
42... Kc6 {[%clk 0:00:03.5]} 43. g4 {[%clk 0:01:29.6]} 43... Kb6 {[%clk
0:00:02.7]} 44. g5 {[%clk 0:01:29.7]} 44... Ka5 {[%clk 0:00:03.1]} 45. g6 {[%clk
0:01:30.3]} 45... Kxa4 {[%clk 0:00:04]} 46. g7 {[%clk 0:01:31.2]} 46... c4
{[%clk 0:00:04.1]} 47. g8=Q {[%clk 0:01:32.1]} 47... Kb3 {[%clk 0:00:04.5]} 48.
Ke3 {[%clk 0:01:32.2]} 48... Kb4 {[%clk 0:00:04.4]} 49. Qb8+ {[%clk 0:01:32.3]}
49... Kc3 {[%clk 0:00:02.2]} 50. Qxe5+ {[%clk 0:01:33.2]} 1-0